[Event "Late-Titled-Tuesday-Blitz-September-26-2023"]
[Site "Chess.com"]
[Date "2023.09.26"]
[Round "1"]
[White "mishanick"]
[Black "JM2005GM"]
[Result "1-0"]
[WhiteElo "3090"]
[BlackElo "2500"]
[TimeControl "180+1"]
[EndTime "14:05:04 PDT"]
[Termination "mishanick won by resignation"]

1. d4 {[%clk 0:03:00.9]} 1... Nf6 {[%clk 0:02:59.4]} 2. c4 {[%clk 0:03:01.6]}
2... b6 {[%clk 0:02:59.3]} 3. f3 {[%clk 0:03:01.3]} 3... Nc6 {[%clk 0:02:59.5]}
4. e4 {[%clk 0:03:00.7]} 4... e5 {[%clk 0:02:57.7]} 5. d5 {[%clk 0:03:01.1]}
5... Ne7 {[%clk 0:02:55.9]} 6. Nc3 {[%clk 0:02:59.8]} 6... Ng6 {[%clk
0:02:53.6]} 7. Be3 {[%clk 0:03:00.5]} 7... Bc5 {[%clk 0:02:45.2]} 8. Qd2 {[%clk
0:03:00.4]} 8... d6 {[%clk 0:02:43.7]} 9. Bd3 {[%clk 0:03:00.1]} 9... Bxe3
{[%clk 0:02:42]} 10. Qxe3 {[%clk 0:03:01]} 10... Nd7 {[%clk 0:02:36.2]} 11. g3
{[%clk 0:02:59.8]} 11... a5 {[%clk 0:02:33.4]} 12. h4 {[%clk 0:02:59.3]} 12...
h5 {[%clk 0:02:32.5]} 13. Bc2 {[%clk 0:02:57.9]} 13... Nc5 {[%clk 0:02:31.6]}
14. Nge2 {[%clk 0:02:54.6]} 14... Bd7 {[%clk 0:02:30.6]} 15. b3 {[%clk 0:02:54]}
15... Rb8 {[%clk 0:02:18.6]} 16. a3 {[%clk 0:02:53.2]} 16... O-O {[%clk
0:01:58.3]} 17. b4 {[%clk 0:02:42.3]} 17... Nb7 {[%clk 0:01:57.2]} 18. f4 {[%clk
0:02:32.1]} 18... exf4 {[%clk 0:01:32.5]} 19. gxf4 {[%clk 0:02:31.9]} 19... Qf6
{[%clk 0:01:33.2]} 20. Kd2 {[%clk 0:02:26.4]} 20... axb4 {[%clk 0:01:19.1]} 21.
axb4 {[%clk 0:02:26.1]} 21... Ra8 {[%clk 0:01:19.8]} 22. Rag1 {[%clk 0:02:13.5]}
22... Ra3 {[%clk 0:01:17.7]} 23. Rg5 {[%clk 0:02:14]} 23... Rfa8 {[%clk
0:01:06]} 24. e5 {[%clk 0:02:12.9]} 24... dxe5 {[%clk 0:01:06.7]} 25. fxe5
{[%clk 0:02:13.5]} 25... Qe7 {[%clk 0:01:06.4]} 26. e6 {[%clk 0:02:09.4]} 26...
Be8 {[%clk 0:00:49.1]} 27. exf7+ {[%clk 0:02:05.2]} 27... Bxf7 {[%clk 0:00:50]}
28. Bxg6 {[%clk 0:02:01.3]} 28... Ra2+ {[%clk 0:00:18.4]} 29. Kd3 {[%clk
0:02:01.6]} 29... Bxg6+ {[%clk 0:00:18.6]} 30. Rxg6 {[%clk 0:02:01.5]} 30...
Rxe2 {[%clk 0:00:18.1]} 31. Qxe2 {[%clk 0:01:58.5]} 1-0

[Event "Late-Titled-Tuesday-Blitz-September-26-2023"]
[Site "Chess.com"]
[Date "2023.09.26"]
[Round "1"]
[White "Lady_Nika"]
[Black "FairChess_on_YouTube"]
[Result "0-1"]
[WhiteElo "2501"]
[BlackElo "3090"]
[TimeControl "180+1"]
[EndTime "14:05:25 PDT"]
[Termination "FairChess_on_YouTube won by resignation"]

1. e4 {[%clk 0:03:00.9]} 1... e6 {[%clk 0:02:58.1]} 2. d4 {[%clk 0:03:01.1]}
2... d5 {[%clk 0:02:58.7]} 3. exd5 {[%clk 0:03:01.6]} 3... exd5 {[%clk
0:02:58.3]} 4. Nf3 {[%clk 0:03:02.5]} 4... Nf6 {[%clk 0:02:57]} 5. c3 {[%clk
0:03:02.8]} 5... Bd6 {[%clk 0:02:53.3]} 6. Bd3 {[%clk 0:03:03]} 6... Qe7+ {[%clk
0:02:53.2]} 7. Qe2 {[%clk 0:03:02.8]} 7... Qxe2+ {[%clk 0:02:52.9]} 8. Bxe2
{[%clk 0:03:03]} 8... Bf5 {[%clk 0:02:53]} 9. Nbd2 {[%clk 0:03:02]} 9... O-O
{[%clk 0:02:52.2]} 10. O-O {[%clk 0:02:59.7]} 10... Re8 {[%clk 0:02:52.5]} 11.
Re1 {[%clk 0:02:59.2]} 11... a5 {[%clk 0:02:51.6]} 12. Nf1 {[%clk 0:02:58.7]}
12... a4 {[%clk 0:02:50.1]} 13. a3 {[%clk 0:02:58.4]} 13... Nc6 {[%clk
0:02:47.3]} 14. Bg5 {[%clk 0:02:52.3]} 14... Ne4 {[%clk 0:02:45.1]} 15. Ne3
{[%clk 0:02:50.9]} 15... Be6 {[%clk 0:02:42.6]} 16. Bh4 {[%clk 0:02:50.1]} 16...
Bf4 {[%clk 0:02:40.1]} 17. Nf1 {[%clk 0:02:46.2]} 17... Na5 {[%clk 0:02:32.9]}
18. Bg3 {[%clk 0:02:41.9]} 18... Nxg3 {[%clk 0:02:29.5]} 19. hxg3 {[%clk
0:02:39.1]} 19... Bh6 {[%clk 0:02:29.5]} 20. Bb5 {[%clk 0:02:33.9]} 20... c6
{[%clk 0:02:29.6]} 21. Bd3 {[%clk 0:02:12.4]} 21... b5 {[%clk 0:02:28.9]} 22.
Ne5 {[%clk 0:02:06.3]} 22... f6 {[%clk 0:02:27.9]} 23. Nf3 {[%clk 0:02:01.7]}
23... Nc4 {[%clk 0:02:27.3]} 24. Re2 {[%clk 0:01:58.2]} 24... Bf7 {[%clk
0:02:20.5]} 25. Rae1 {[%clk 0:01:57.5]} 25... Rxe2 {[%clk 0:02:18]} 26. Rxe2
{[%clk 0:01:57.5]} 26... Bc1 {[%clk 0:02:17.8]} 27. Bxc4 {[%clk 0:01:46.8]}
27... bxc4 {[%clk 0:02:18.7]} 28. Ne3 {[%clk 0:01:43]} 28... Rb8 {[%clk
0:02:14.5]} 29. Nd1 {[%clk 0:01:43.1]} 29... Bg6 {[%clk 0:02:14.3]} 30. Ne1
{[%clk 0:01:40.8]} 30... Kf7 {[%clk 0:02:06.8]} 31. Kf1 {[%clk 0:01:27.5]} 31...
Bd3 {[%clk 0:02:02.8]} 32. Nxd3 {[%clk 0:01:27.2]} 32... cxd3 {[%clk 0:02:03.7]}
33. Re1 {[%clk 0:01:24.3]} 33... Bd2 {[%clk 0:01:53.2]} 34. Re3 {[%clk
0:01:15.1]} 34... Bxe3 {[%clk 0:01:49.9]} 35. fxe3 {[%clk 0:01:15.3]} 35... Ke6
{[%clk 0:01:48.5]} 36. Ke1 {[%clk 0:01:10.7]} 36... Kf5 {[%clk 0:01:48.6]} 37.
Kd2 {[%clk 0:01:09.5]} 37... Kg4 {[%clk 0:01:48.9]} 38. Kxd3 {[%clk 0:01:09.7]}
38... Kxg3 {[%clk 0:01:49.3]} 39. e4 {[%clk 0:01:05.5]} 39... dxe4+ {[%clk
0:01:48.9]} 40. Kxe4 {[%clk 0:01:05.7]} 40... h5 {[%clk 0:01:47.2]} 41. c4
{[%clk 0:01:04.5]} 41... Kxg2 {[%clk 0:01:45.7]} 42. d5 {[%clk 0:01:04.6]} 42...
cxd5+ {[%clk 0:01:45.5]} 43. cxd5 {[%clk 0:01:05.5]} 43... h4 {[%clk 0:01:45.8]}
44. d6 {[%clk 0:01:00.7]} 44... h3 {[%clk 0:01:44.7]} 45. Ne3+ {[%clk
0:01:00.5]} 45... Kg1 {[%clk 0:01:45]} 46. Ng4 {[%clk 0:01:00.5]} 46... h2
{[%clk 0:01:44.8]} 47. Nxh2 {[%clk 0:01:00.6]} 47... Kxh2 {[%clk 0:01:45.7]} 48.
Kd5 {[%clk 0:01:01.2]} 48... Rxb2 {[%clk 0:01:45.5]} 0-1

[Event "Late-Titled-Tuesday-Blitz-September-26-2023"]
[Site "Chess.com"]
[Date "2023.09.26"]
[Round "1"]
[White "Cambek64"]
[Black "platy3"]
[Result "0-1"]
[WhiteElo "2460"]
[BlackElo "2877"]
[TimeControl "180+1"]
[EndTime "14:05:25 PDT"]
[Termination "platy3 won by resignation"]

1. b3 {[%clk 0:03:00.4]} 1... e5 {[%clk 0:02:57.6]} 2. Bb2 {[%clk 0:02:51.8]}
2... Nc6 {[%clk 0:02:58]} 3. e3 {[%clk 0:02:51.5]} 3... Nf6 {[%clk 0:02:57.8]}
4. c4 {[%clk 0:02:51]} 4... g6 {[%clk 0:02:54.7]} 5. d3 {[%clk 0:02:48.3]} 5...
Bg7 {[%clk 0:02:54.3]} 6. a3 {[%clk 0:02:48.8]} 6... O-O {[%clk 0:02:54.4]} 7.
Nd2 {[%clk 0:02:47.1]} 7... d5 {[%clk 0:02:51.7]} 8. cxd5 {[%clk 0:02:47]} 8...
Nxd5 {[%clk 0:02:50.7]} 9. Qc2 {[%clk 0:02:47]} 9... f5 {[%clk 0:02:48.7]} 10.
Ngf3 {[%clk 0:02:47.4]} 10... f4 {[%clk 0:02:39.8]} 11. e4 {[%clk 0:02:46.4]}
11... Nb6 {[%clk 0:02:39.5]} 12. b4 {[%clk 0:02:45.4]} 12... Be6 {[%clk
0:02:33.6]} 13. Be2 {[%clk 0:02:41.6]} 13... Qd7 {[%clk 0:02:31.9]} 14. O-O
{[%clk 0:02:27]} 14... a5 {[%clk 0:02:21.2]} 15. b5 {[%clk 0:02:21.9]} 15... Nd4
{[%clk 0:02:21.8]} 16. Nxd4 {[%clk 0:02:21.5]} 16... exd4 {[%clk 0:02:22.7]} 17.
Nf3 {[%clk 0:02:17.9]} 17... a4 {[%clk 0:02:14.7]} 18. Ng5 {[%clk 0:01:55.7]}
18... Bb3 {[%clk 0:02:13.8]} 19. Qd2 {[%clk 0:01:50.5]} 19... Qxb5 {[%clk
0:02:11.2]} 20. Nf3 {[%clk 0:01:49.9]} 20... c5 {[%clk 0:02:10.6]} 21. Rfb1
{[%clk 0:01:37]} 21... Nd7 {[%clk 0:02:06.9]} 22. Bd1 {[%clk 0:01:35]} 22...
Bxd1 {[%clk 0:02:05.3]} 23. Bxd4 {[%clk 0:01:13.3]} 23... Bb3 {[%clk 0:02:04.7]}
24. Bxg7 {[%clk 0:01:12]} 24... Kxg7 {[%clk 0:02:04.3]} 25. Qc3+ {[%clk
0:01:10.8]} 25... Kg8 {[%clk 0:02:04.3]} 26. d4 {[%clk 0:01:10.2]} 26... cxd4
{[%clk 0:01:47.4]} 27. Nxd4 {[%clk 0:01:06.7]} 27... Qc5 {[%clk 0:01:47.4]} 28.
Rxb3 {[%clk 0:00:59]} 28... axb3 {[%clk 0:01:46.3]} 29. Qxb3+ {[%clk 0:00:59.2]}
29... Kh8 {[%clk 0:01:45.2]} 30. Ne6 {[%clk 0:00:58]} 30... Qe5 {[%clk
0:01:45.8]} 31. Rd1 {[%clk 0:00:55.8]} 31... Rfe8 {[%clk 0:01:31.7]} 32. Nd4
{[%clk 0:00:40.7]} 32... Nc5 {[%clk 0:01:30.1]} 0-1

[Event "Late-Titled-Tuesday-Blitz-September-26-2023"]
[Site "Chess.com"]
[Date "2023.09.26"]
[Round "1"]
[White "Chessdude1987"]
[Black "A-Fier"]
[Result "0-1"]
[WhiteElo "2432"]
[BlackElo "2795"]
[TimeControl "180+1"]
[EndTime "14:05:25 PDT"]
[Termination "A-Fier won on time"]

1. e4 {[%clk 0:03:00.9]} 1... Nf6 {[%clk 0:02:58.2]} 2. e5 {[%clk 0:02:59.5]}
2... Nd5 {[%clk 0:02:58.5]} 3. d4 {[%clk 0:02:57.2]} 3... d6 {[%clk 0:02:58.7]}
4. Nf3 {[%clk 0:02:57]} 4... g6 {[%clk 0:02:58.6]} 5. Be2 {[%clk 0:02:54.8]}
5... Bg7 {[%clk 0:02:58.5]} 6. exd6 {[%clk 0:02:49.5]} 6... cxd6 {[%clk
0:02:58.1]} 7. c4 {[%clk 0:02:44.6]} 7... Nb6 {[%clk 0:02:57.8]} 8. Nc3 {[%clk
0:02:44.2]} 8... O-O {[%clk 0:02:58]} 9. O-O {[%clk 0:02:41.5]} 9... Nc6 {[%clk
0:02:58.2]} 10. a4 {[%clk 0:02:27.6]} 10... Bg4 {[%clk 0:02:51.6]} 11. a5 {[%clk
0:01:44.4]} 11... Nd7 {[%clk 0:02:47]} 12. Be3 {[%clk 0:01:43]} 12... Nxa5
{[%clk 0:02:45.4]} 13. Qa4 {[%clk 0:01:37.6]} 13... Nc6 {[%clk 0:02:41.9]} 14.
d5 {[%clk 0:01:22.7]} 14... Nce5 {[%clk 0:02:38.9]} 15. Nd4 {[%clk 0:01:13.2]}
15... Bxe2 {[%clk 0:02:39]} 16. Ncxe2 {[%clk 0:01:09.9]} 16... Nb6 {[%clk
0:02:39.3]} 17. Qb3 {[%clk 0:01:00.1]} 17... Nexc4 {[%clk 0:02:39.5]} 18. Rfd1
{[%clk 0:00:53.7]} 18... Nxe3 {[%clk 0:02:39.1]} 19. fxe3 {[%clk 0:00:53.5]}
19... Qd7 {[%clk 0:02:32.9]} 20. h3 {[%clk 0:00:50.2]} 20... Rfc8 {[%clk
0:02:31.6]} 21. Nc3 {[%clk 0:00:49.4]} 21... Nc4 {[%clk 0:02:31]} 22. Rd3 {[%clk
0:00:48.7]} 22... a6 {[%clk 0:02:30.3]} 23. Rf1 {[%clk 0:00:43.8]} 23... Nxe3
{[%clk 0:02:29.8]} 24. Re1 {[%clk 0:00:31.8]} 24... Nc4 {[%clk 0:02:29.9]} 25.
Ne6 {[%clk 0:00:29]} 25... fxe6 {[%clk 0:02:28]} 26. dxe6 {[%clk 0:00:29.1]}
26... Qc6 {[%clk 0:02:28.2]} 27. Nd5 {[%clk 0:00:28.9]} 27... Re8 {[%clk
0:02:24]} 28. Rc1 {[%clk 0:00:27.1]} 28... b5 {[%clk 0:02:24.6]} 29. Qd1 {[%clk
0:00:21.1]} 29... Qc5+ {[%clk 0:02:23.8]} 30. Kh1 {[%clk 0:00:20.6]} 30... Qf2
{[%clk 0:02:23.4]} 31. Rf3 {[%clk 0:00:19.7]} 31... Qh4 {[%clk 0:02:22.6]} 32.
Rf7 {[%clk 0:00:19.1]} 32... Ne5 {[%clk 0:02:21.9]} 33. Qf1 {[%clk 0:00:14.1]}
33... Kh8 {[%clk 0:02:12.8]} 34. Nc7 {[%clk 0:00:12.7]} 34... Nxf7 {[%clk
0:02:05.3]} 35. exf7 {[%clk 0:00:08.3]} 35... Rf8 {[%clk 0:02:05.7]} 36. Nxa8
{[%clk 0:00:07.8]} 36... Rxa8 {[%clk 0:02:06.6]} 37. Rc7 {[%clk 0:00:04.5]}
37... Rf8 {[%clk 0:02:06.4]} 38. Rxe7 {[%clk 0:00:04.5]} 38... Qxe7 {[%clk
0:02:06.3]} 0-1

[Event "Late-Titled-Tuesday-Blitz-September-26-2023"]
[Site "Chess.com"]
[Date "2023.09.26"]
[Round "1"]
[White "Garmendiarov"]
[Black "sergeikim"]
[Result "0-1"]
[WhiteElo "2302"]
[BlackElo "2609"]
[TimeControl "180+1"]
[EndTime "14:05:27 PDT"]
[Termination "sergeikim won by resignation"]

1. e4 {[%clk 0:03:00.9]} 1... e5 {[%clk 0:02:59.9]} 2. Nf3 {[%clk 0:03:01.3]}
2... Nc6 {[%clk 0:02:59.9]} 3. Bb5 {[%clk 0:03:02]} 3... a6 {[%clk 0:03:00.2]}
4. Ba4 {[%clk 0:03:02.4]} 4... Nf6 {[%clk 0:03:00.4]} 5. O-O {[%clk 0:03:03.2]}
5... b5 {[%clk 0:03:00.6]} 6. Bb3 {[%clk 0:03:03.2]} 6... Bc5 {[%clk 0:03:01.3]}
7. c3 {[%clk 0:02:49.6]} 7... d6 {[%clk 0:03:01.1]} 8. d4 {[%clk 0:02:49.2]}
8... Bb6 {[%clk 0:03:01.5]} 9. h3 {[%clk 0:02:41]} 9... h6 {[%clk 0:03:01]} 10.
Re1 {[%clk 0:02:36.7]} 10... O-O {[%clk 0:03:00.2]} 11. Be3 {[%clk 0:02:22.9]}
11... Re8 {[%clk 0:02:59]} 12. Nbd2 {[%clk 0:02:15.8]} 12... exd4 {[%clk
0:02:52.9]} 13. cxd4 {[%clk 0:02:15]} 13... Nb4 {[%clk 0:02:49]} 14. e5 {[%clk
0:01:43.8]} 14... Nfd5 {[%clk 0:02:47.9]} 15. Ne4 {[%clk 0:01:24.5]} 15... Bf5
{[%clk 0:02:42.8]} 16. Ng3 {[%clk 0:01:17.1]} 16... Bh7 {[%clk 0:02:38.4]} 17.
a3 {[%clk 0:01:03.6]} 17... Nxe3 {[%clk 0:02:31.4]} 18. Rxe3 {[%clk 0:01:01.1]}
18... Nc6 {[%clk 0:02:29.8]} 19. e6 {[%clk 0:00:45.4]} 19... d5 {[%clk
0:02:21.8]} 20. Rc1 {[%clk 0:00:34.4]} 20... Qd6 {[%clk 0:02:18.1]} 21. exf7+
{[%clk 0:00:29.6]} 21... Kxf7 {[%clk 0:02:17.9]} 22. Rxc6 {[%clk 0:00:25]} 22...
Qxc6 {[%clk 0:02:15.5]} 23. Ne5+ {[%clk 0:00:24]} 23... Rxe5 {[%clk 0:02:14.9]}
24. Rxe5 {[%clk 0:00:24.5]} 24... Rd8 {[%clk 0:02:09.5]} 25. Qf3+ {[%clk
0:00:23.6]} 25... Qf6 {[%clk 0:02:07.7]} 26. Bxd5+ {[%clk 0:00:23.5]} 26... Kf8
{[%clk 0:02:05]} 27. Re3 {[%clk 0:00:18.4]} 27... Bxd4 {[%clk 0:01:55.7]} 28.
Rd3 {[%clk 0:00:14.4]} 28... Bxd3 {[%clk 0:01:52.9]} 29. Qxd3 {[%clk 0:00:14.3]}
29... Rxd5 {[%clk 0:01:49.6]} 30. Ne4 {[%clk 0:00:14.7]} 30... Qf4 {[%clk
0:01:45.6]} 31. Qc2 {[%clk 0:00:12.4]} 31... c5 {[%clk 0:01:43.3]} 0-1

[Event "Late-Titled-Tuesday-Blitz-September-26-2023"]
[Site "Chess.com"]
[Date "2023.09.26"]
[Round "1"]
[White "Chessdemon2019"]
[Black "Willychess95"]
[Result "0-1"]
[WhiteElo "2390"]
[BlackElo "2700"]
[TimeControl "180+1"]
[EndTime "14:05:30 PDT"]
[Termination "Willychess95 won by resignation"]

1. e4 {[%clk 0:03:00.9]} 1... c5 {[%clk 0:02:59.3]} 2. Nf3 {[%clk 0:03:01]} 2...
Nc6 {[%clk 0:02:58.8]} 3. d4 {[%clk 0:02:59.3]} 3... cxd4 {[%clk 0:02:59.7]} 4.
Nxd4 {[%clk 0:02:59.9]} 4... e5 {[%clk 0:02:59.8]} 5. Nb5 {[%clk 0:02:59]} 5...
d6 {[%clk 0:02:56.2]} 6. c4 {[%clk 0:02:57.6]} 6... Be6 {[%clk 0:02:54.7]} 7.
Be3 {[%clk 0:02:51]} 7... g6 {[%clk 0:02:45]} 8. Be2 {[%clk 0:02:40.7]} 8... a6
{[%clk 0:02:40.9]} 9. N5c3 {[%clk 0:02:40.3]} 9... Bg7 {[%clk 0:02:40.7]} 10.
O-O {[%clk 0:02:34.1]} 10... Nf6 {[%clk 0:02:37.6]} 11. Nd5 {[%clk 0:02:28.5]}
11... O-O {[%clk 0:02:34]} 12. Nbc3 {[%clk 0:02:27.3]} 12... Bxd5 {[%clk
0:02:10.2]} 13. cxd5 {[%clk 0:02:27.4]} 13... Nd4 {[%clk 0:02:04.3]} 14. Bxd4
{[%clk 0:02:12]} 14... exd4 {[%clk 0:02:03]} 15. Qxd4 {[%clk 0:02:12.5]} 15...
Re8 {[%clk 0:02:03.6]} 16. f3 {[%clk 0:02:09]} 16... Nxe4 {[%clk 0:01:59.4]} 17.
Qd3 {[%clk 0:02:00.8]} 17... Nxc3 {[%clk 0:01:51.9]} 18. bxc3 {[%clk 0:02:00.8]}
18... Qa5 {[%clk 0:01:51]} 19. Rfc1 {[%clk 0:01:56.4]} 19... Rac8 {[%clk
0:01:48]} 20. Rab1 {[%clk 0:01:49.2]} 20... b5 {[%clk 0:01:08.5]} 21. c4 {[%clk
0:01:35.4]} 21... b4 {[%clk 0:01:08.1]} 22. Bd1 {[%clk 0:01:24.4]} 22... Qc5+
{[%clk 0:01:06.2]} 23. Kf1 {[%clk 0:01:24.1]} 23... Re3 {[%clk 0:01:02.8]} 24.
Qd2 {[%clk 0:01:17.5]} 24... Bc3 {[%clk 0:01:00.8]} 25. Qf2 {[%clk 0:01:17.3]}
25... Re1+ {[%clk 0:01:00.3]} 26. Qxe1 {[%clk 0:01:17.6]} 26... Bxe1 {[%clk
0:01:00.9]} 27. Kxe1 {[%clk 0:01:18.2]} 27... Qg1+ {[%clk 0:00:56.9]} 28. Kd2
{[%clk 0:01:17.5]} 28... Qf2+ {[%clk 0:00:50.3]} 29. Be2 {[%clk 0:01:14.9]}
29... a5 {[%clk 0:00:50.3]} 30. Re1 {[%clk 0:01:07.1]} 30... Qd4+ {[%clk
0:00:45.9]} 31. Bd3 {[%clk 0:01:03.5]} 31... Qc3+ {[%clk 0:00:46]} 32. Ke2
{[%clk 0:01:03]} 32... Re8+ {[%clk 0:00:46]} 33. Kf2 {[%clk 0:01:03.3]} 33...
Rxe1 {[%clk 0:00:45.1]} 0-1

[Event "Late-Titled-Tuesday-Blitz-September-26-2023"]
[Site "Chess.com"]
[Date "2023.09.26"]
[Round "1"]
[White "Andrej2004"]
[Black "K_alena13"]
[Result "1-0"]
[WhiteElo "2559"]
[BlackElo "2151"]
[TimeControl "180+1"]
[EndTime "14:05:32 PDT"]
[Termination "Andrej2004 won by resignation"]

1. Nf3 {[%clk 0:02:57.6]} 1... d5 {[%clk 0:02:55.9]} 2. b3 {[%clk 0:02:54.1]}
2... Nf6 {[%clk 0:02:54.6]} 3. Bb2 {[%clk 0:02:52.5]} 3... Bf5 {[%clk
0:02:53.1]} 4. g3 {[%clk 0:02:51.5]} 4... e6 {[%clk 0:02:52.5]} 5. Bg2 {[%clk
0:02:50.7]} 5... h6 {[%clk 0:02:52.7]} 6. O-O {[%clk 0:02:47]} 6... c6 {[%clk
0:02:52.8]} 7. d3 {[%clk 0:02:46.8]} 7... Be7 {[%clk 0:02:45.5]} 8. Nbd2 {[%clk
0:02:46.8]} 8... O-O {[%clk 0:02:44.7]} 9. c4 {[%clk 0:02:38.9]} 9... Nbd7
{[%clk 0:02:41.7]} 10. Re1 {[%clk 0:02:34.7]} 10... Bh7 {[%clk 0:02:40.4]} 11.
Qc2 {[%clk 0:02:31.8]} 11... a5 {[%clk 0:02:38.5]} 12. a3 {[%clk 0:02:31.5]}
12... Qb6 {[%clk 0:02:34]} 13. h3 {[%clk 0:02:27.1]} 13... Bc5 {[%clk
0:02:22.1]} 14. e3 {[%clk 0:02:25.4]} 14... Rfd8 {[%clk 0:02:04.1]} 15. Qc3
{[%clk 0:02:24.6]} 15... Bf8 {[%clk 0:01:51.6]} 16. d4 {[%clk 0:02:16.8]} 16...
Ne4 {[%clk 0:01:42.1]} 17. Nxe4 {[%clk 0:02:14.6]} 17... Bxe4 {[%clk 0:01:40]}
18. c5 {[%clk 0:02:11]} 18... Qc7 {[%clk 0:01:39]} 19. b4 {[%clk 0:02:10.5]}
19... axb4 {[%clk 0:01:32.6]} 20. axb4 {[%clk 0:02:11.4]} 20... Nf6 {[%clk
0:01:26.3]} 21. b5 {[%clk 0:02:04.5]} 21... Bf5 {[%clk 0:00:57.5]} 22. Ne5
{[%clk 0:01:54.1]} 22... Ne4 {[%clk 0:00:55.4]} 23. Qb4 {[%clk 0:01:50.7]} 23...
Rdb8 {[%clk 0:00:50.4]} 24. b6 {[%clk 0:01:49.4]} 24... Qe7 {[%clk 0:00:47.1]}
25. Ra7 {[%clk 0:01:45.7]} 25... Qg5 {[%clk 0:00:39.5]} 26. h4 {[%clk
0:01:38.2]} 26... Qh5 {[%clk 0:00:34.3]} 27. Bf3 {[%clk 0:01:35]} 27... Rxa7
{[%clk 0:00:06]} 28. bxa7 {[%clk 0:01:35.9]} 1-0

[Event "Late-Titled-Tuesday-Blitz-September-26-2023"]
[Site "Chess.com"]
[Date "2023.09.26"]
[Round "1"]
[White "wild3000"]
[Black "PotapovaM"]
[Result "1-0"]
[WhiteElo "2329"]
[BlackElo "2603"]
[TimeControl "180+1"]
[EndTime "14:05:40 PDT"]
[Termination "wild3000 won on time"]

1. e4 {[%clk 0:03:00]} 1... e6 {[%clk 0:02:57.8]} 2. Nf3 {[%clk 0:02:59.6]} 2...
d5 {[%clk 0:02:57.1]} 3. e5 {[%clk 0:02:59.7]} 3... c5 {[%clk 0:02:53.3]} 4. b4
{[%clk 0:02:59.6]} 4... cxb4 {[%clk 0:02:50.8]} 5. d4 {[%clk 0:02:58.2]} 5...
Nc6 {[%clk 0:02:50.5]} 6. Bd3 {[%clk 0:02:51.9]} 6... f6 {[%clk 0:02:48.4]} 7.
O-O {[%clk 0:02:50.3]} 7... Bd7 {[%clk 0:02:16.8]} 8. a3 {[%clk 0:02:49.2]} 8...
bxa3 {[%clk 0:02:15.3]} 9. c3 {[%clk 0:02:49.3]} 9... Qb6 {[%clk 0:01:59.6]} 10.
Nxa3 {[%clk 0:02:46.9]} 10... fxe5 {[%clk 0:01:53.1]} 11. dxe5 {[%clk
0:02:45.3]} 11... Bc5 {[%clk 0:01:53.1]} 12. Rb1 {[%clk 0:02:36.2]} 12... Qa5
{[%clk 0:01:38.8]} 13. Rb5 {[%clk 0:02:14]} 13... Qc7 {[%clk 0:00:26.4]} 14.
Rxc5 {[%clk 0:02:11.9]} 14... a6 {[%clk 0:00:27]} 15. c4 {[%clk 0:01:57.9]}
15... b6 {[%clk 0:00:25]} 16. cxd5 {[%clk 0:01:46.9]} 16... bxc5 {[%clk
0:00:24.8]} 17. dxc6 {[%clk 0:01:47.2]} 17... Qxc6 {[%clk 0:00:21.1]} 18. Qc2
{[%clk 0:01:41.9]} 18... Ne7 {[%clk 0:00:14.6]} 19. Nc4 {[%clk 0:01:35.9]} 19...
O-O {[%clk 0:00:10.3]} 20. Bxh7+ {[%clk 0:01:34.9]} 20... Kh8 {[%clk 0:00:10.5]}
21. Be4 {[%clk 0:01:27.5]} 21... Nd5 {[%clk 0:00:09.5]} 22. Ng5 {[%clk
0:01:21.6]} 22... Rab8 {[%clk 0:00:06]} 23. Bxd5 {[%clk 0:01:20.1]} 1-0

[Event "Late-Titled-Tuesday-Blitz-September-26-2023"]
[Site "Chess.com"]
[Date "2023.09.26"]
[Round "1"]
[White "OparinGrigoriy"]
[Black "maksimys18"]
[Result "1-0"]
[WhiteElo "2970"]
[BlackElo "2489"]
[TimeControl "180+1"]
[EndTime "14:05:46 PDT"]
[Termination "OparinGrigoriy won by resignation"]

1. c4 {[%clk 0:02:51.5]} 1... e6 {[%clk 0:02:59.8]} 2. Nc3 {[%clk 0:02:52.1]}
2... d5 {[%clk 0:02:59.5]} 3. d4 {[%clk 0:02:52.4]} 3... Be7 {[%clk 0:02:59.4]}
4. cxd5 {[%clk 0:02:52.3]} 4... exd5 {[%clk 0:02:57.5]} 5. Bf4 {[%clk 0:02:53]}
5... Nf6 {[%clk 0:02:54.9]} 6. e3 {[%clk 0:02:53.7]} 6... O-O {[%clk 0:02:55.1]}
7. Bd3 {[%clk 0:02:52.3]} 7... c6 {[%clk 0:02:54.9]} 8. Nge2 {[%clk 0:02:52.8]}
8... Be6 {[%clk 0:02:54.6]} 9. h3 {[%clk 0:02:52.8]} 9... Nbd7 {[%clk
0:02:54.5]} 10. O-O {[%clk 0:02:53.5]} 10... Re8 {[%clk 0:02:54.5]} 11. a3
{[%clk 0:02:51.6]} 11... Nf8 {[%clk 0:02:54.4]} 12. b4 {[%clk 0:02:50.3]} 12...
Ng6 {[%clk 0:02:50.8]} 13. Bh2 {[%clk 0:02:49.9]} 13... Bd6 {[%clk 0:02:50.4]}
14. Bxd6 {[%clk 0:02:47.7]} 14... Qxd6 {[%clk 0:02:50.1]} 15. b5 {[%clk
0:02:47.3]} 15... Bd7 {[%clk 0:02:37.6]} 16. bxc6 {[%clk 0:02:45.8]} 16... bxc6
{[%clk 0:02:36.9]} 17. Na4 {[%clk 0:02:43.8]} 17... Ne4 {[%clk 0:02:34.7]} 18.
Bxe4 {[%clk 0:02:42.8]} 18... Rxe4 {[%clk 0:02:34.2]} 19. Nc5 {[%clk 0:02:43.4]}
19... Rh4 {[%clk 0:02:32.9]} 20. Ng3 {[%clk 0:02:39.5]} 20... f5 {[%clk
0:02:24.7]} 21. f4 {[%clk 0:02:34.8]} 21... Re8 {[%clk 0:02:23.1]} 22. Qd2
{[%clk 0:02:29.8]} 22... Nf8 {[%clk 0:02:10.4]} 23. Rab1 {[%clk 0:02:26.3]}
23... Bc8 {[%clk 0:02:06.4]} 24. Nd3 {[%clk 0:02:19.5]} 24... g5 {[%clk
0:01:56.9]} 25. Ne5 {[%clk 0:02:18.5]} 25... gxf4 {[%clk 0:01:54.5]} 26. exf4
{[%clk 0:02:19.4]} 26... Qxa3 {[%clk 0:01:54.1]} 27. Rf3 {[%clk 0:02:14.4]}
27... Qa4 {[%clk 0:01:42.5]} 28. Rc1 {[%clk 0:02:08.4]} 28... Rh6 {[%clk
0:01:35.3]} 29. Rfc3 {[%clk 0:02:08.5]} 29... Bb7 {[%clk 0:01:13.7]} 30. Nxf5
{[%clk 0:02:08.2]} 30... Rf6 {[%clk 0:01:10.3]} 31. Rg3+ {[%clk 0:02:06.6]}
31... Kh8 {[%clk 0:01:05.6]} 32. Nh6 {[%clk 0:02:06.7]} 32... Ng6 {[%clk
0:00:57.8]} 33. Nhf7+ {[%clk 0:02:05.4]} 33... Kg7 {[%clk 0:00:53.7]} 34. f5
{[%clk 0:02:05.6]} 34... Rxf7 {[%clk 0:00:33.5]} 35. Nxf7 {[%clk 0:02:06.5]}
35... Kxf7 {[%clk 0:00:34.2]} 36. fxg6+ {[%clk 0:02:07.1]} 36... hxg6 {[%clk
0:00:29.4]} 37. Rf1+ {[%clk 0:02:06.2]} 37... Kg7 {[%clk 0:00:28.1]} 38. Qf4
{[%clk 0:02:06.8]} 38... Rg8 {[%clk 0:00:06.5]} 39. Qe5+ {[%clk 0:02:00.4]}
39... Kh6 {[%clk 0:00:05.5]} 40. Qg5+ {[%clk 0:01:54.1]} 40... Kg7 {[%clk
0:00:05]} 41. Qxg6+ {[%clk 0:01:53.7]} 1-0